fUST/lending_fUST_20250218
["ID","MTS","AMOUNT","RATE_DAILY","PERIOD"]
[353459610,1739851833019,-500.0,0.00015399,2]
[353459611,1739851833028,-500.0,0.00015399,2]
[353459612,1739851833038,-500.0,0.00015399,2]
[353459613,1739851833049,-419.40067518,0.00015399,2]
[353459614,1739851833060,-500.0,0.00015399,2]
[353459615,1739851833070,-511.1179375,0.00015399,2]
[353459616,1739851833080,-500.0,0.000154,2]
[353459617,1739851833090,-13.41119019,0.000154,2]
[353459618,1739851833108,-489.72904562,0.000154,2]
[353459619,1739851833118,-503.26344201,0.000154,2]
[353459620,1739851833128,-504.543494,0.000154,2]
[353459621,1739851833138,-261.99896067,0.000154,2]
[353459622,1739851833149,-501.47462572,0.000154,2]
[353459623,1739851833158,-500.0,0.000154,2]
[353459624,1739851833169,-500.0,0.000154,2]
[353459625,1739851833179,-500.0,0.000154,2]
[353459626,1739851833188,-503.34225498,0.000154,2]
[353459627,1739851833198,-500.0,0.000154,2]
[353459628,1739851833208,-500.0,0.000154,2]
[353459629,1739851833217,-503.7141561,0.000154,2]
[353459630,1739851833227,-500.0,0.000154,2]
[353459631,1739851833236,-500.0,0.000154,2]
[353459632,1739851833246,-500.0,0.000154,2]
[353459633,1739851833255,-500.0,0.000154,2]
[353459634,1739851833265,-502.0580148,0.000154,2]
[353459635,1739851833275,-503.04561459,0.000154,2]
[353459636,1739851833284,-503.02681637,0.000154,2]
[353459637,1739851833294,-501.83772615,0.000154,2]
[353459638,1739851833305,-502.16887013,0.000154,2]
[353459639,1739851833319,-629.67316806,0.000154,2]
[353459640,1739851833328,-500.0,0.000154,2]
[353459641,1739851833338,-500.84995567,0.000154,2]
[353459642,1739851833347,-101.50540364,0.000154,2]
[353459643,1739851833361,-398.49459636,0.000154,2]
[353459644,1739851833370,-501.37422611,0.000154,2]
[353459645,1739851833381,-504.14866458,0.000154,2]
[353459646,1739851833392,-500.0,0.000154,2]
[353459647,1739851833402,-500.0,0.000154,2]
[353459648,1739851833411,-501.7794354,0.000154,2]
[353459649,1739851833421,-505.60805723,0.000154,2]
[353459650,1739851833430,-503.18491287,0.000154,2]
[353459651,1739851833439,-500.0,0.000154,2]
[353459652,1739851833449,-501.42417858,0.000154,2]
[353459653,1739851833458,-500.0,0.000154,2]
[353459654,1739851833468,-500.0,0.000154,2]
[353459655,1739851833478,-500.0,0.000154,2]
[353459656,1739851833488,-502.53688352,0.000154,2]
[353459657,1739851833498,-502.09340342,0.000154,2]
[353459658,1739851833508,-500.0,0.000154,2]
[353459659,1739851833517,-500.0,0.000154,2]
[353459660,1739851833527,-500.0,0.000154,2]
[353459661,1739851833536,-500.0,0.000154,2]
[353459662,1739851833545,-500.0,0.000154,2]
[353459663,1739851833556,-500.0,0.000154,2]
[353459664,1739851833566,-500.0,0.000154,2]
[353459665,1739851833575,-500.0,0.000154,2]
[353459666,1739851833585,-501.37434676,0.000154,2]
[353459667,1739851833595,-500.0,0.000154,2]
[353459668,1739851833605,-500.0,0.000154,2]
[353459669,1739851833615,-500.0,0.000154,2]
[353459670,1739851833624,-500.0,0.000154,2]
[353459671,1739851833634,-500.0,0.000154,2]
[353459672,1739851833643,-500.0,0.000154,2]
[353459673,1739851833653,-500.0,0.000154,2]
[353459674,1739851833663,-574.63,0.000154,2]
[353459675,1739851833672,-500.0,0.000154,2]
[353459676,1739851833682,-500.0,0.000154,2]
[353459677,1739851833692,-500.0,0.000154,2]
[353459678,1739851833702,-500.0,0.000154,2]
[353459679,1739851833711,-513.91,0.000154,2]
[353459680,1739851833720,-500.0,0.000154,2]
[353459681,1739851833730,-631.32,0.000154,2]
[353459682,1739851833739,-500.0,0.000154,2]
[353459683,1739851833749,-500.0,0.000154,2]
[353459684,1739851833759,-1074.1,0.000154,2]
[353459685,1739851833768,-500.0,0.000154,2]
[353459686,1739851833778,-500.0,0.000154,2]
[353459687,1739851833787,-500.0,0.000154,2]
[353459688,1739851833797,-500.0,0.000154,2]
[353459689,1739851833807,-500.0,0.000154,2]
[353459690,1739851833817,-500.0,0.000154,2]
[353459691,1739851833826,-500.0,0.000154,2]
[353459692,1739851833837,-500.0,0.000154,2]
[353459693,1739851833846,-587.01,0.000154,2]
[353459694,1739851833856,-500.0,0.000154,2]
[353459695,1739851833866,-500.0,0.000154,2]
[353459696,1739851833875,-500.0,0.000154,2]
[353459697,1739851833885,-500.0,0.000154,2]
[353459698,1739851833894,-500.0,0.000154,2]
[353459699,1739851833904,-500.0,0.000154,2]
[353459700,1739851833914,-500.0,0.000154,2]
[353459701,1739851833924,-500.0,0.000154,2]
[353459702,1739851833933,-500.0,0.000154,2]
[353459703,1739851833943,-500.0,0.000154,2]
[353459704,1739851833952,-500.0,0.000154,2]
[353459705,1739851833962,-502.33056316,0.000154,2]
[353459706,1739851833972,-502.89447481,0.000154,2]
[353459707,1739851833981,-407.25481118,0.000154,2]
[353459708,1739851834042,-92.74518882,0.000154,2]
[353459709,1739851834052,-388.06481118,0.000154,2]
[353459721,1739851838664,-394.07,0.00015398,2]
[353459722,1739851838674,-500.0,0.00015399,2]
[353459723,1739851838683,-500.0,0.00015399,2]
[353459724,1739851838692,-228.3637674,0.00015399,2]
[353459725,1739851838701,-432.53402491,0.00015399,2]
[353459726,1739851838710,-500.0,0.00015399,2]
[353459727,1739851838719,-449.5423781,0.00015399,2]
[353459728,1739851838729,-192.40269539,0.00015399,2]
[353459729,1739851838739,-111.93518882,0.000154,2]
[353459730,1739851838748,-500.0,0.000154,2]
[353459731,1739851838757,-401.97689972,0.000154,2]
[353459732,1739851838766,-500.0,0.000154,2]
[353459733,1739851838775,-500.0,0.000154,2]
[353459734,1739851838784,-500.0,0.000154,2]
[353459735,1739851838793,-500.0,0.000154,2]
[353459736,1739851838803,-500.0,0.000154,2]
[353459737,1739851838812,-396.0,0.00015437,2]
[353459738,1739851838821,-3211.32771552,0.00015471,2]
[353459739,1739851838831,-500.0,0.0001548,2]
[353459740,1739851838840,-500.0,0.0001548,2]
[353459741,1739851838849,-500.0,0.0001548,2]
[353459742,1739851838859,-500.0,0.0001548,2]
[353459743,1739851838868,-500.0,0.0001548,2]
[353459744,1739851838877,-616.78,0.0001548,2]
[353459745,1739851838887,-500.0,0.0001548,2]
[353459746,1739851838896,-500.0,0.0001548,2]
[353459747,1739851838906,-248.09,0.0001548,2]
[353459748,1739851838915,-500.0,0.0001548,2]
[353459749,1739851838924,-500.0,0.0001548,2]
[353459750,1739851838933,-500.0,0.0001548,2]
[353459751,1739851838943,-500.0,0.00015481,2]
[353459752,1739851838952,-500.0,0.00015481,2]
[353459753,1739851838961,-251.52342615,0.00015481,2]
[353459754,1739851838970,-500.0,0.00015481,2]
[353459755,1739851838979,-601.08,0.00015481,2]
[353459756,1739851838988,-500.0,0.00015481,2]
[353459757,1739851838997,-500.0,0.00015481,2]
[353459758,1739851839006,-450.47,0.00015481,2]
[353459759,1739851839015,-500.0,0.00015481,2]
[353459760,1739851839025,-172.09,0.00015481,2]
[353459761,1739851839034,-500.0,0.00015481,2]
[353459762,1739851839044,-500.0,0.00015481,2]
[353459763,1739851839053,-500.0,0.00015481,2]
[353459764,1739851839062,-500.0,0.00015481,2]
[353459765,1739851839071,-500.0,0.00015481,2]
[353459766,1739851839081,-500.0,0.00015481,2]
[353459767,1739851839090,-303.65,0.00015481,2]
[353459768,1739851839099,-500.0,0.00015481,2]
[353459769,1739851839108,-500.0,0.00015481,2]
[353459770,1739851839117,-500.0,0.00015481,2]
[353459771,1739851839127,-500.0,0.00015481,2]
[353459772,1739851839136,-500.0,0.00015481,2]
[353459773,1739851839146,-500.0,0.00015481,2]
[353459774,1739851839155,-1363.28,0.00015481,2]
[353459775,1739851839164,-5570.12,0.00015481,2]
[353459776,1739851839174,-500.0,0.00015481,2]
[353459777,1739851839183,-506.76039904,0.00015481,2]
[353459778,1739851839192,-500.0,0.00015481,2]
[353459779,1739851839201,-500.0,0.00015481,2]
[353459780,1739851839211,-526.54689986,0.00015481,2]
[353459781,1739851839220,-500.0,0.00015481,2]
[353459782,1739851839229,-196.2058954,0.00015481,2]
[353459783,1739851839239,-500.0,0.00015481,2]
[353459784,1739851839248,-500.0,0.00015481,2]
[353459785,1739851839258,-367.94336471,0.00015481,2]
[353459786,1739851839268,-601.61,0.00015481,2]
[353459787,1739851839277,-500.0,0.00015481,2]
[353459788,1739851839286,-500.0,0.00015481,2]
[353459789,1739851839295,-501.53,0.00015481,2]
[353459790,1739851839304,-500.0,0.00015481,2]
[353459791,1739851839316,-500.0,0.00015481,2]
[353459792,1739851839325,-500.0,0.00015481,2]
[353459793,1739851839334,-1455.31,0.00015481,2]
[353459794,1739851839343,-248.45,0.00015481,2]
[353459795,1739851839354,-500.0,0.00015481,2]
[353459796,1739851839363,-500.0,0.00015481,2]
[353459797,1739851839372,-500.0,0.00015481,2]
[353459798,1739851839382,-500.0,0.00015481,2]
[353459799,1739851839393,-452.27,0.00015481,2]
[353459800,1739851839402,-623.72563325,0.00015481,2]
[353459801,1739851839411,-500.0,0.00015481,2]
[353459802,1739851839421,-500.0,0.00015481,2]
[353459803,1739851839430,-500.0,0.00015481,2]
[353459804,1739851839439,-500.0,0.00015481,2]
[353459805,1739851839448,-500.0,0.00015482,2]
[353459806,1739851839457,-508.40878413,0.00015482,2]
[353459807,1739851839467,-503.69997172,0.00015482,2]
[353459808,1739851839476,-503.65758533,0.00015482,2]
[353459809,1739851839485,-505.60460609,0.00015482,2]
[353459810,1739851839495,-500.0,0.00015482,2]
[353459811,1739851839504,-500.0,0.00015482,2]
[353459812,1739851839513,-503.38613861,0.00015482,2]
[353459813,1739851839522,-500.0,0.00015482,2]
[353459814,1739851839532,-564.33,0.00015482,2]
[353459815,1739851839541,-502.48999283,0.00015482,2]
[353459816,1739851839550,-649.69,0.00015482,2]
[353459817,1739851839560,-500.81122575,0.00015482,2]
[353459818,1739851839646,-500.0,0.00015482,2]
[353459819,1739851839657,-501.55429017,0.00015482,2]
[353459820,1739851839667,-617.79,0.00015482,2]
[353459821,1739851839676,-500.0,0.00015482,2]
[353459822,1739851839685,-500.0,0.00015482,2]
[353459823,1739851839694,-251.50146294,0.00015482,2]
[353459824,1739851839703,-500.0,0.00015482,2]
[353459825,1739851839712,-500.0,0.00015482,2]
[353459826,1739851839721,-500.0,0.00015482,2]
[353459827,1739851839731,-502.00593207,0.00015482,2]
[353459828,1739851839740,-503.16674286,0.00015482,2]
[353459829,1739851839749,-500.0,0.00015482,2]
[353459830,1739851839758,-389.03,0.00015482,2]
[353459831,1739851839768,-1074.1,0.00015482,2]
[353459832,1739851839777,-325.12,0.00015482,2]
[353459833,1739851839787,-500.0,0.00015482,2]
[353459834,1739851839796,-500.0,0.00015482,2]
[353459835,1739851839806,-500.0,0.00015482,2]
[353459836,1739851839815,-500.0,0.00015482,2]
[353459837,1739851839824,-180.86,0.00015482,2]
[353459838,1739851839833,-500.0,0.00015482,2]
[353459839,1739851839843,-500.0,0.00015482,2]
[353459840,1739851839852,-276.45,0.00015482,2]
[353459841,1739851839861,-500.0,0.00015534,2]
[353459842,1739851839871,-244.00968205,0.00015546,2]
[353459843,1739851839880,-3211.32771552,0.00015554,2]
[353459844,1739851839889,-500.0,0.00015562,2]
[353459845,1739851839898,-500.0,0.00015562,2]
[353459846,1739851839907,-500.0,0.00015562,2]
[353459847,1739851839916,-500.0,0.00015562,2]
[353459848,1739851839926,-500.0,0.00015562,2]
[353459849,1739851839935,-500.0,0.00015562,2]
[353459850,1739851839945,-500.0,0.00015562,2]
[353459851,1739851839954,-640.99,0.00015562,2]
[353459852,1739851839963,-500.0,0.00015562,2]
[353459853,1739851839972,-1363.28,0.00015563,2]
[353459854,1739851839982,-500.0,0.00015563,2]
[353459855,1739851839992,-500.0,0.00015563,2]
[353459856,1739851840001,-226.34467366,0.00015563,2]
[353459857,1739851840010,-500.0,0.00015564,2]
[353459858,1739851840020,-256.82,0.00015564,2]
[353459859,1739851840029,-500.0,0.00015564,2]
[353459860,1739851840038,-1074.1,0.00015564,2]
[353459861,1739851840048,-236.76,0.00015564,2]
[353459862,1739851840058,-500.0,0.00015564,2]
[353459863,1739851840067,-500.0,0.00015564,2]
[353459864,1739851840076,-275.05,0.00015564,2]
[353459865,1739851840085,-461.47,0.00015564,2]
[353459866,1739851840095,-500.0,0.00015564,2]
[353459867,1739851840103,-500.0,0.00015564,2]
[353459868,1739851840113,-321.51,0.00015564,2]
[353459869,1739851840123,-520.89831625,0.00015564,2]
[353459870,1739851840132,-500.0,0.00015564,2]
[353459871,1739851840141,-196.77,0.00015564,2]
[353459872,1739851840150,-500.0,0.00015564,2]
[353459874,1739851840160,-502.60066028,0.00015564,2]
[353459875,1739851840169,-454.4,0.00015564,2]
[353459876,1739851840178,-500.0,0.00015564,2]
[353459877,1739851840188,-500.0,0.00015564,2]
[353459878,1739851840197,-500.0,0.00015564,2]
[353459879,1739851840207,-5570.12,0.00015564,2]
[353459880,1739851840217,-513.34,0.00015564,2]
[353459881,1739851840228,-500.0,0.00015564,2]
[353459882,1739851840237,-500.0,0.00015564,2]
[353459883,1739851840247,-287.1,0.00015564,2]
[353459884,1739851840256,-562.68,0.00015564,2]
[353459885,1739851840265,-500.0,0.00015564,2]
[353459886,1739851840274,-500.0,0.00015564,2]
[353459887,1739851840283,-500.0,0.00015564,2]
[353459888,1739851840292,-522.7,0.00015564,2]
[353459889,1739851840303,-1455.31,0.00015564,2]
[353459890,1739851840314,-500.0,0.00015564,2]
[353459891,1739851840323,-500.0,0.00015564,2]
[353459892,1739851840333,-500.0,0.00015564,2]
[353459893,1739851840342,-500.0,0.00015564,2]
[353459894,1739851840352,-402.73,0.00015564,2]
[353459895,1739851840362,-167.31,0.00015564,2]
[353459896,1739851840371,-3211.32771552,0.00015636,2]
[353459897,1739851840381,-5227.00522475,0.00015643,2]
[353459898,1739851840393,-500.0,0.00015644,2]
[353459899,1739851840403,-269.19,0.00015644,2]
[353459900,1739851840412,-500.0,0.00015644,2]
[353459901,1739851840421,-297.66,0.00015644,2]
[353459902,1739851840431,-188.29,0.00015644,2]
[353459903,1739851840440,-500.0,0.00015644,2]
[353459905,1739851840450,-500.0,0.00015644,2]
[353459906,1739851840459,-500.0,0.00015644,2]
[353459907,1739851840468,-309.45,0.00015646,2]
[353459908,1739851840477,-500.0,0.00015646,2]
[353459909,1739851840486,-1074.1,0.00015646,2]
[353459910,1739851840495,-238.56,0.00015646,2]
[353459911,1739851840505,-500.0,0.00015646,2]
[353459912,1739851840514,-500.0,0.00015646,2]
[353459913,1739851840523,-501.89812997,0.00015646,2]
[353459914,1739851840532,-500.0,0.00015646,2]
[353459915,1739851840542,-501.8274151,0.00015646,2]
[353459916,1739851840551,-500.0,0.00015646,2]
[353459917,1739851840561,-500.0,0.00015646,2]
[353459918,1739851840570,-1363.28,0.00015646,2]
[353459919,1739851840579,-5570.12,0.00015646,2]
[353459920,1739851840588,-500.0,0.00015646,2]
[353459922,1739851840597,-500.0,0.00015646,2]
[353459924,1739851840606,-500.0,0.00015646,2]
[353459925,1739851840616,-464.51,0.00015646,2]
[353459926,1739851840625,-500.0,0.00015646,2]
[353459927,1739851840634,-1455.31,0.00015646,2]
[353459928,1739851840643,-500.0,0.00015646,2]
[353459929,1739851840652,-500.0,0.00015646,2]
[353459930,1739851840662,-500.0,0.00015646,2]
[353459931,1739851840671,-1092.07063831,0.000157,2]
[353459932,1739851840680,-500.0,0.00015727,2]
[353459933,1739851840690,-500.0,0.00015727,2]
[353459934,1739851840699,-500.0,0.00015727,2]
[353459935,1739851840708,-500.0,0.00015727,2]
[353459936,1739851840717,-500.0,0.00015727,2]
[353459937,1739851840727,-500.0,0.00015727,2]
[353459938,1739851840736,-500.0,0.00015728,2]
[353459939,1739851840745,-1074.1,0.00015728,2]
[353459940,1739851840755,-305.49324479,0.00015728,2]
[353459941,1739851840764,-408.35,0.00015728,2]
[353459942,1739851840774,-500.0,0.00015728,2]
[353459943,1739851840783,-312.09,0.00015728,2]
[353459944,1739851840793,-582.58,0.00015728,2]
[353459945,1739851840802,-1363.28,0.00015728,2]
[353459946,1739851840811,-5570.12,0.00015728,2]
[353459947,1739851840821,-500.0,0.00015728,2]
[353459948,1739851840830,-500.0,0.00015728,2]
[353459949,1739851840839,-347.7,0.00015728,2]
[353459950,1739851840848,-500.0,0.00015728,2]
[353459951,1739851840857,-1455.31,0.00015728,2]
[353459952,1739851840867,-500.0,0.00015728,2]
[353459953,1739851840876,-500.0,0.00015728,2]
[353459954,1739851840885,-500.0,0.00015728,2]
[353459955,1739851840894,-500.0,0.00015809,2]
[353459956,1739851840904,-500.0,0.00015809,2]
[353459957,1739851840913,-500.0,0.00015809,2]
[353459958,1739851840922,-500.0,0.00015809,2]
[353459959,1739851840932,-500.0,0.00015809,2]
[353459960,1739851840941,-500.0,0.0001581,2]
[353459961,1739851840950,-1074.1,0.0001581,2]
[353459962,1739851840959,-500.0,0.0001581,2]
[353459963,1739851840968,-1363.28,0.0001581,2]
[353459964,1739851840978,-5570.12,0.0001581,2]
[353459965,1739851840988,-500.0,0.0001581,2]
[353459966,1739851840997,-499.04,0.0001581,2]
[353459967,1739851841006,-500.0,0.0001581,2]
[353459968,1739851841015,-1455.31,0.0001581,2]
[353459969,1739851841025,-500.0,0.0001581,2]
[353459970,1739851841034,-500.0,0.0001581,2]
[353459971,1739851841043,-500.0,0.0001581,2]
[353459972,1739851841053,-2160.57305433,0.00015845,2]
[353459973,1739851841062,-3211.32771552,0.00015882,2]
[353459974,1739851841071,-500.0,0.00015891,2]
[353459975,1739851841080,-221.91,0.00015891,2]
[353459976,1739851841089,-500.0,0.00015891,2]
[353459977,1739851841099,-500.0,0.00015891,2]
[353459978,1739851841108,-526.1,0.00015891,2]
[353459979,1739851841117,-500.0,0.00015892,2]
[353459980,1739851841126,-1363.28,0.00015892,2]
[353459981,1739851841135,-5570.12,0.00015892,2]
[353459982,1739851841145,-500.0,0.00015892,2]
[353459983,1739851841154,-1455.31,0.00015892,2]
[353459984,1739851841164,-617.28,0.00015892,2]
[353459985,1739851841173,-500.0,0.00015892,2]
[353459986,1739851841182,-500.0,0.00015892,2]
[353459987,1739851841191,-500.0,0.00015892,2]
[353459988,1739851841201,-245.6,0.00015893,2]
[353459989,1739851841210,-1074.1,0.00015893,2]
[353459990,1739851841219,-522.18,0.00015893,2]
[353459991,1739851841228,-246.99571098,0.00015921,2]
[353459992,1739851841238,-1000.0,0.00015921,2]
[353459993,1739851841247,-503.002767,0.00015921,2]
[353459994,1739851841256,-500.0,0.00015933,2]
[353459995,1739851841265,-500.0,0.00015973,2]
[353459996,1739851841274,-500.0,0.00015973,2]
[353459997,1739851841283,-500.0,0.00015973,2]
[353459998,1739851841292,-1363.28,0.00015974,2]
[353459999,1739851841302,-1074.1,0.00015975,2]
[353460000,1739851841315,-500.0,0.00015975,2]
[353460001,1739851841324,-5570.12,0.00015975,2]
[353460002,1739851841333,-500.0,0.00015975,2]
[353460003,1739851841342,-1455.31,0.00015975,2]
[353460004,1739851841353,-219.04,0.00015975,2]
[353460005,1739851841363,-444.34,0.00015975,2]
[353460006,1739851841373,-1739.82092698,0.00015995,2]
[353460007,1739851841383,-500.0,0.00016055,2]
[353460008,1739851841395,-500.0,0.00016055,2]
[353460009,1739851841405,-500.0,0.00016055,2]
[353460010,1739851841414,-1363.28,0.00016056,2]
[353460011,1739851841423,-1074.1,0.00016057,2]
[353460012,1739851841432,-500.0,0.00016057,2]
[353460013,1739851841442,-5570.12,0.00016057,2]
[353460014,1739851841451,-500.0,0.00016057,2]
[353460015,1739851841460,-1455.31,0.00016057,2]
[353460016,1739851841470,-160.02194052,0.00016063,2]
[353460017,1739851841479,-3211.32771552,0.00016129,2]
[353460018,1739851841489,-244.00968204,0.00016135,2]
[353460019,1739851841498,-500.0,0.00016138,2]
[353460020,1739851841508,-500.0,0.00016138,2]
[353460021,1739851841517,-510.4,0.00016138,2]
[353460022,1739851841527,-1074.1,0.00016139,2]
[353460023,1739851841537,-500.0,0.00016139,2]
[353460024,1739851841546,-1363.28,0.00016139,2]
[353460025,1739851841555,-5570.12,0.00016139,2]
[353460026,1739851841565,-500.0,0.00016139,2]
[353460027,1739851841574,-1455.31,0.00016139,2]
[353460028,1739851841585,-635.89,0.00016164,2]
[353460029,1739851841595,-500.0,0.0001622,2]
[353460030,1739851841680,-500.0,0.0001622,2]
[353460031,1739851841690,-1074.1,0.00016221,2]
[353460032,1739851841699,-500.0,0.00016221,2]
[353460033,1739851841709,-1363.28,0.00016221,2]
[353460034,1739851841718,-5570.12,0.00016221,2]
[353460035,1739851841728,-500.0,0.00016221,2]
[353460036,1739851841739,-1455.31,0.00016221,2]
[353460037,1739851841749,-500.0,0.00016302,2]
[353460038,1739851841758,-500.0,0.00016302,2]
[353460039,1739851841768,-500.0,0.00016303,2]
[353460040,1739851841778,-1363.28,0.00016303,2]
[353460041,1739851841787,-5570.12,0.00016303,2]
[353460042,1739851841796,-500.0,0.00016303,2]
[353460043,1739851841805,-1455.31,0.00016303,2]
[353460044,1739851841814,-500.0,0.00016303,2]
[353460045,1739851841824,-1074.1,0.00016304,2]
[353460046,1739851841833,-500.0,0.00016384,2]
[353460047,1739851841843,-500.0,0.00016384,2]
[353460048,1739851841852,-1363.28,0.00016385,2]
[353460049,1739851841862,-1074.1,0.00016386,2]
[353460050,1739851841871,-500.0,0.00016386,2]
[353460051,1739851841881,-5570.12,0.00016386,2]
[353460052,1739851841890,-500.0,0.00016386,2]
[353460053,1739851841900,-1455.31,0.00016386,2]
[353460054,1739851841909,-3211.32771552,0.00016458,2]
[353460055,1739851841919,-500.0,0.00016466,2]
[353460056,1739851841928,-500.0,0.00016466,2]
[353460057,1739851841938,-1363.28,0.00016467,2]
[353460058,1739851841947,-1074.1,0.00016468,2]
[353460059,1739851841957,-500.0,0.00016468,2]
[353460060,1739851841967,-5570.12,0.00016468,2]
[353460061,1739851841976,-500.0,0.00016468,2]
[353460062,1739851841985,-1455.31,0.00016468,2]
[353460063,1739851841995,-503.64714928,0.00016481,2]
[353460064,1739851842005,-500.0,0.00016549,2]
[353460065,1739851842014,-500.0,0.00016549,2]
[353460066,1739851842023,-1074.1,0.0001655,2]
[353460067,1739851842033,-500.0,0.0001655,2]
[353460068,1739851842043,-1363.28,0.0001655,2]
[353460069,1739851842052,-5570.12,0.0001655,2]
[353460070,1739851842063,-500.0,0.0001655,2]
[353460071,1739851842072,-1455.31,0.0001655,2]
[353460072,1739851842082,-500.0,0.00016631,2]
[353460073,1739851842091,-184.54,0.00016631,2]
[353460074,1739851842101,-1074.1,0.00016632,2]
[353460075,1739851842110,-500.0,0.00016632,2]
[353460076,1739851842119,-1363.28,0.00016632,2]
[353460077,1739851842129,-5570.12,0.00016632,2]
[353460078,1739851842139,-287.46545039,0.00016632,2]
[353460079,1739851842158,-1455.31,0.00016632,2]
[353460080,1739851842169,-500.0,0.00016713,2]
[353460081,1739851842178,-500.0,0.00016714,2]
[353460082,1739851842187,-1363.28,0.00016714,2]
[353460083,1739851842197,-5570.12,0.00016714,2]
[353460084,1739851842206,-1455.31,0.00016714,2]
[353460085,1739851842215,-500.0,0.00016714,2]
[353460086,1739851842224,-1074.1,0.00016715,2]
[353460087,1739851842233,-244.00968204,0.00016723,2]
[353460088,1739851842243,-500.0,0.00016783,2]
[353460089,1739851842252,-500.99348148,0.00016783,2]
[353460090,1739851842261,-3211.32771552,0.00016786,2]
[353460091,1739851842271,-288.88,0.00016795,2]
[353460092,1739851842280,-500.0,0.00016796,2]
[353460093,1739851842289,-1363.28,0.00016796,2]
[353460094,1739851842298,-5570.12,0.00016796,2]
[353460095,1739851842309,-1455.31,0.00016796,2]
[353460096,1739851842321,-1074.1,0.00016797,2]
[353460097,1739851842330,-500.0,0.00016832,2]
[353460098,1739851842339,-1000.0,0.00016832,30]
[353460099,1739851842348,-1000.0,0.00016832,30]
[353460100,1739851842359,-1000.0,0.00016832,30]
[353460101,1739851842367,-1000.0,0.00016832,30]
[353460102,1739851842377,-1000.0,0.00016832,30]
[353460103,1739851842387,-1187.81649,0.00016832,30]
[353460104,1739851842396,-420.0,0.00016845,2]
[353460105,1739851842405,-3000.0,0.00016848,2]
[353460106,1739851842414,-1363.28,0.00016878,2]
[353460107,1739851842423,-1074.1,0.00016879,2]
[353460108,1739851842433,-500.0,0.00016879,2]
[353460109,1739851842442,-5570.12,0.00016879,2]
[353460110,1739851842451,-1455.31,0.00016879,2]
[353460111,1739851842462,-500.0,0.00016904,2]
[353460112,1739851842471,-268.25180074,0.00016922,2]
[353460113,1739851842481,-500.0,0.0001696,2]
[353460114,1739851842490,-1074.1,0.00016961,2]
[353460115,1739851842500,-500.0,0.00016961,2]
[353460116,1739851842510,-1363.28,0.00016961,2]
[353460117,1739851842519,-5570.12,0.00016961,2]
[353460118,1739851842529,-1455.31,0.00016961,2]
[353460119,1739851842538,-1074.1,0.00017043,2]
[353460120,1739851842547,-500.0,0.00017043,2]
[353460121,1739851842558,-1363.28,0.00017043,2]
[353460122,1739851842567,-5570.12,0.00017043,2]
[353460123,1739851842576,-1455.31,0.00017043,2]
[353460124,1739851842586,-3211.32771552,0.00017115,2]